bitfinex/quotes_ETHUSD_20250630
["timestamp","ask_amount","ask_price","bid_price","bid_amount"]
[1751260399905,0.2002,2500.4,2500.1,7.68670837]
[1751260400086,0.2002,2500.4,2500.2,3.19967744]
[1751260402307,0.2002,2500.4,2500.1,0.06581436]
[1751260402527,0.9769,2500.4,2500.1,0.06581436]
[1751260404210,0.9769,2500.4,2500.1,3.26565449]
[1751260409899,0.9769,2500.4,2500.1,0.06581436]
[1751260410099,1.39462909,2500.4,2500.1,0.06581436]
[1751260413421,0.9769,2500.4,2500.1,3.26562842]
[1751260433667,0.2002,2500.4,2500.3,3.19961604]
[1751260433821,0.001,2500.4,2500.3,3.19961604]
[1751260435653,0.001,2500.4,2500.1,4.82581436]
[1751260435835,0.001,2500.4,2500.3,3.19961604]
[1751260439575,0.001,2500.4,2500.2,7.62080726]
[1751260440457,0.001,2500.4,2500.2,3.1996762]
[1751260443783,0.8243,2500.4,2500.1,3.26561688]
[1751260444192,0.8243,2500.4,2500.1,13.26561688]
[1751260444753,0.8243,2500.4,2500.2,3.19973668]
[1751260447193,0.001,2500.4,2500.3,3.19961604]
[1751260447353,0.001,2500.4,2500.1,13.26567918]
[1751260447354,0.001,2500.4,2500.2,3.19968829]
[1751260447955,0.001,2500.4,2500.1,13.26563896]
[1751260449078,0.001,2500.4,2500.2,3.1997214]
[1751260450376,0.001,2500.4,2500.1,13.26564325]
[1751260451760,0.001,2500.4,2500.2,3.19973915]
[1751260458072,0.001,2500.4,2500.3,3.19961604]
[1751260461211,0.001,2500.4,2500.3,6.06755492]
[1751260461410,0.001,2500.4,2500.3,16.26675492]
[1751260464520,0.001,2500.4,2500.3,30.78343092]
[1751260464723,0.001,2500.4,2500.3,29.69138392]
[1751260465318,0.001,2500.4,2500.3,29.58826392]
[1751260465889,0.001,2500.4,2500.3,32.69945703]
[1751260466410,0.001,2500.4,2500.3,31.07545703]
[1751260467187,0.001,2500.4,2500.3,21.78998003]
[1751260467517,0.001,2500.4,2500.3,22.73475492]
[1751260473927,0.001,2500.4,2500.3,12.73275492]
[1751260476512,0.001,2500.4,2500.1,1.72481436]
[1751260476513,0.001,2500.4,2500.1,4.05984725]
[1751260476814,0.001,2500.4,2500.3,3.19961604]
[1751260478047,0.001,2500.4,2500.2,13.19970014]
[1751260478646,0.001,2500.4,2500.3,3.19961604]
[1751260479925,0.001,2500.4,2500.2,13.19968723]
[1751260480648,0.001,2500.4,2500.3,3.19961604]
[1751260481243,0.001,2500.4,2500.2,10.0]
[1751260481462,0.001,2500.4,2500.2,13.19968321]
[1751260481617,0.001,2500.4,2500.2,3.19968321]
[1751260483849,0.001,2500.4,2500.3,3.19961604]
[1751260484829,0.001,2500.4,2500.2,3.19966746]
[1751260485225,0.001,2500.4,2500.3,3.19961604]
[1751260488033,0.001,2500.4,2500.3,4.51265208]
[1751260488357,0.001,2500.4,2500.3,4.71185208]
[1751260489358,0.001,2500.4,2500.3,11.17685208]
[1751260489777,0.001,2500.4,2500.3,12.00025208]
[1751260491133,0.001,2500.4,2500.3,16.76025208]
[1751260497494,0.001,2500.4,2500.3,15.93685208]
[1751260497781,0.001,2500.4,2500.3,14.62381604]
[1751260499599,0.001,2500.4,2500.3,30.14704115]
[1751260500110,0.001,2500.4,2500.3,30.93714115]
[1751260500823,0.001,2500.4,2500.3,24.62381604]
[1751260501001,0.001,2500.4,2500.3,24.42261604]
[1751260501166,0.001,2500.4,2500.3,17.95961604]
[1751260502208,0.001,2500.4,2500.3,10.0]
[1751260502402,0.001,2500.4,2500.2,9.66269295]
[1751260503809,0.001,2500.4,2500.2,3.19969295]
[1751260504204,0.001,2500.4,2500.3,3.19961604]
[1751260519280,0.001,2500.4,2500.3,4.53960113]
[1751260519789,0.001,2500.4,2500.3,5.50900113]
[1751260521380,0.001,2500.4,2500.3,11.96900113]
[1751260522854,0.001,2500.4,2500.3,27.49222624]
[1751260523059,0.001,2500.4,2500.3,47.96697424]
[1751260523586,0.001,2500.4,2500.3,43.63413224]
[1751260523792,0.001,2500.4,2500.3,48.39413224]
[1751260524292,0.001,2500.4,2500.3,48.99498724]
[1751260525068,0.001,2500.4,2500.3,49.32898724]
[1751260526167,0.001,2500.4,2500.3,62.25222624]
[1751260527799,0.001,2500.4,2500.3,61.22244624]
[1751260528178,0.001,2500.4,2500.3,32.25222624]
[1751260528377,0.001,2500.4,2500.3,55.86444624]
[1751260529200,0.001,2500.4,2500.3,57.87573424]
[1751260529780,0.001,2500.4,2500.3,56.68973424]
[1751260530313,0.001,2500.4,2500.3,55.57144624]
[1751260530802,0.001,2500.4,2500.3,37.36378724]
[1751260531374,0.001,2500.4,2500.3,41.25477624]
[1751260531575,0.001,2500.4,2500.3,40.96177624]
[1751260532300,0.001,2500.4,2500.3,42.52290624]
[1751260533314,0.001,2500.4,2500.3,47.07698624]
[1751260533807,0.001,2500.4,2500.3,46.23477624]
[1751260534405,0.001,2500.4,2500.3,32.25222624]
[1751260534608,0.001,2500.4,2500.3,46.23477624]
[1751260534781,0.001,2500.4,2500.3,45.02273824]
[1751260535413,0.001,2500.4,2500.3,46.24629724]
[1751260535707,0.001,2500.4,2500.3,45.96127624]
[1751260536007,0.001,2500.4,2500.3,44.69673824]
[1751260536179,0.001,2500.4,2500.3,42.63418024]
[1751260536378,0.001,2500.4,2500.3,32.25222624]
[1751260536732,0.001,2500.4,2500.3,44.08818024]
[1751260537611,0.001,2500.4,2500.3,44.12236424]
[1751260538377,0.001,2500.4,2500.3,47.22520424]
[1751260538604,0.001,2500.4,2500.3,33.90622624]
[1751260538909,0.001,2500.4,2500.3,47.42520424]
[1751260539596,0.001,2500.4,2500.3,40.70110024]
[1751260539786,0.001,2500.4,2500.3,40.29322124]
[1751260540412,0.001,2500.4,2500.3,27.11658313]
[1751260540583,0.001,2500.4,2500.3,32.63980824]
[1751260541883,0.001,2500.4,2500.3,35.12400924]
[1751260542085,0.001,2500.4,2500.3,34.72217124]
[1751260548420,0.001,2500.4,2500.3,33.46081524]
[1751260548584,0.001,2500.4,2500.3,31.92341524]
[1751260548784,0.001,2500.4,2500.3,19.49880113]
[1751260549030,0.001,2500.4,2500.3,18.15881604]
[1751260553350,0.001,2500.4,2500.3,13.39881604]
[1751260557633,0.001,2500.4,2500.3,3.19961604]
[1751260558856,0.001,2500.4,2500.2,7.95967591]
[1751260559247,0.001,2500.4,2500.2,3.19967591]
[1751260560538,0.001,2500.4,2500.2,3.19973157]
[1751260561718,0.001,2500.4,2500.1,0.26501436]
[1751260561925,0.1992,2500.2,2500.1,0.06581436]
[1751260562938,0.1992,2500.2,2500.1,3.26568636]
[1751260563328,0.1992,2500.2,2500.1,0.06581436]
[1751260565353,0.1992,2500.2,2500.1,3.26568636]
[1751260566044,0.1992,2500.2,2500.1,0.06581436]
[1751260566763,0.1992,2500.2,2500.1,3.26568636]
[1751260566964,0.1992,2500.2,2500.1,0.06581436]
[1751260568062,0.1992,2500.2,2500.0,3.20194027]
[1751260568262,0.1992,2500.2,2500.1,3.199872]
[1751260568486,0.001,2500.4,2500.3,3.19961604]
[1751260568670,0.2002,2500.4,2500.3,3.19961604]
[1751260571478,0.2002,2500.4,2500.2,3.26548736]
[1751260572580,0.2002,2500.4,2500.2,3.19967563]
[1751260573244,0.2002,2500.4,2500.3,3.19961604]
[1751260573568,0.2002,2500.4,2500.2,3.19968208]
[1751260574459,0.2002,2500.4,2500.3,3.19961604]
[1751260575495,0.2002,2500.4,2500.2,3.19968102]
[1751260576091,0.2002,2500.4,2500.3,3.19961604]
[1751260576296,0.2002,2500.4,2500.2,3.19967621]
[1751260578188,0.2002,2500.4,2500.1,3.26561398]
[1751260579369,0.8034,2500.3,2500.1,3.26561398]
[1751260583484,0.2002,2500.4,2500.2,3.19974402]
[1751260584570,0.2002,2500.4,2500.2,3.19967497]
[1751260586100,6.6532,2500.4,2500.2,3.19967497]
[1751260587595,6.6532,2500.4,2500.1,3.26562059]
[1751260589505,6.6532,2500.4,2500.1,0.06581436]
[1751260590295,0.1992,2500.2,2500.1,0.06581436]
[1751260591015,1.0115,2500.2,2500.1,0.06581436]
[1751260592701,4.21124402,2500.2,2500.1,0.06581436]
[1751260593419,4.76124402,2500.2,2500.1,0.06581436]
[1751260593624,14.76124402,2500.2,2500.1,0.06581436]
[1751260593982,17.29948244,2500.2,2500.1,0.06581436]
[1751260595815,18.99948244,2500.2,2500.1,0.06581436]
[1751260599922,14.519772,2500.1,2500.0,0.002]
[1751260600123,28.14842883,2500.1,2500.0,0.002]
[1751260601603,3.20115241,2499.1,2499.0,0.002]
[1751260601807,10.47685241,2499.1,2499.0,0.002]
[1751260603307,11.54220595,2499.1,2499.0,0.002]
[1751260605740,8.34105354,2499.1,2499.0,0.002]
[1751260605903,6.454,2499.1,2499.0,0.002]
[1751260612228,3.20090018,2499.3,2499.0,0.002]
[1751260612427,6.454,2499.2,2499.0,0.002]
[1751260613023,0.7903,2499.6,2499.2,3.20101451]
[1751260613240,0.2,2499.3,2499.2,3.20102432]
[1751260613446,0.2,2499.3,2499.2,3.60112675]
[1751260613645,1.651,2499.7,2499.3,0.8201]
[1751260613848,0.2,2499.5,2499.3,0.8201]
[1751260614049,6.454,2499.4,2499.3,0.8201]
[1751260615260,6.453,2499.4,2499.3,0.8201]
[1751260615656,0.2,2499.5,2499.3,4.02096117]
[1751260615849,6.453,2499.4,2499.3,4.02096117]
[1751260616362,6.453,2499.4,2499.3,0.8201]
[1751260617261,0.2,2499.5,2499.3,4.02096651]
[1751260617654,6.453,2499.4,2499.3,4.02096651]
[1751260617963,6.453,2499.4,2499.3,0.8201]
[1751260621235,0.2,2499.5,2499.3,4.02091586]
[1751260621436,6.453,2499.4,2499.3,4.02091586]
[1751260622969,6.453,2499.4,2499.3,4.02099625]
[1751260624971,6.453,2499.4,2499.3,0.8201]
[1751260625137,6.453,2499.4,2499.3,4.02099625]
[1751260631486,6.453,2499.4,2499.2,3.20096457]
[1751260631846,6.453,2499.4,2499.1,3.9924917]
[1751260632761,6.453,2499.4,2499.2,3.20102382]
[1751260633778,6.453,2499.4,2499.3,3.20089625]
[1751260636679,6.451,2499.4,2499.3,3.20089625]
[1751260637283,0.2,2499.5,2499.4,3.20076818]
[1751260639181,6.651,2499.5,2499.4,3.20076818]
[1751260639479,0.2,2499.5,2499.4,3.20076818]
[1751260639881,0.2,2499.5,2499.1,0.7914]
[1751260640083,0.9938,2499.5,2499.0,0.202]
[1751260640254,0.9938,2499.5,2499.0,3.20325447]
[1751260640255,0.2,2499.2,2499.0,3.20325447]
[1751260643987,0.2,2499.2,2499.0,0.002]
[1751260650684,0.8051,2499.2,2499.0,0.002]
[1751260650998,1.52578058,2499.2,2499.0,0.002]
[1751260656303,0.8051,2499.2,2499.0,0.002]
[1751260658674,5.65853546,2499.4,2499.0,0.002]
[1751260659409,3.20067983,2499.5,2499.0,3.20319757]
[1751260659607,6.45,2499.3,2499.0,3.20319757]
[1751260661204,6.45,2499.3,2499.0,0.002]
[1751260661404,7.41506798,2499.3,2499.0,0.002]
[1751260662382,4.01027654,2499.6,2499.1,3.20107857]
[1751260662588,0.2,2499.2,2499.0,3.2032007]
[1751260667924,0.2,2499.2,2499.0,0.002]
[1751260674502,3.20104082,2499.2,2499.0,0.002]
[1751260674723,10.42204639,2499.3,2499.0,0.002]
[1751260674931,1.04220464,2499.2,2499.0,0.002]
[1751260675633,6.449,2499.2,2499.0,0.002]
[1751260677808,0.7721,2499.3,2499.0,0.002]
[1751260678036,0.2,2499.1,2499.0,0.002]
[1751260678438,0.2,2499.1,2499.0,3.20328051]
[1751260678834,0.2,2499.1,2499.0,0.002]
[1751260681444,0.2,2499.1,2499.0,3.20328051]
[1751260681940,0.2,2499.1,2499.0,0.002]
[1751260685047,0.2,2499.1,2499.0,3.95868051]
[1751260686246,0.2,2499.1,2499.0,3.20328051]
[1751260686448,0.2,2499.1,2499.0,0.002]
[1751260693327,0.2,2499.1,2499.0,3.20328051]
[1751260696865,0.2,2499.1,2499.0,3.91974814]
[1751260697069,4.02604552,2499.9,2499.4,3.20068194]
[1751260697276,0.2,2499.5,2499.4,3.20068194]
[1751260698130,6.447,2499.8,2499.4,3.20068194]
[1751260698358,0.2,2499.6,2499.4,3.20068194]
[1751260707783,0.2,2499.6,2499.3,4.03362731]
[1751260708519,0.2,2499.6,2499.1,4.96]
[1751260708723,3.97502942,2499.6,2499.1,7.9610829]
[1751260709019,0.2,2499.5,2499.2,3.20102192]
[1751260709225,3.61818178,2499.5,2499.1,4.76]
[1751260709420,0.2,2499.3,2499.1,4.76]
[1751260710603,0.9921,2499.3,2499.1,4.76]
[1751260711528,4.1930073,2499.3,2499.1,4.76]
[1751260712229,0.9921,2499.3,2499.1,4.76]
[1751260712528,3.40115241,2499.1,2499.0,0.002]
[1751260712729,4.17925241,2499.1,2499.0,0.002]
[1751260728059,0.9781,2499.1,2499.0,0.002]
[1751260728226,6.645,2499.1,2499.0,0.002]
[1751260731162,0.2,2499.1,2499.0,0.002]
[1751260731459,0.2,2499.1,2499.0,4.01748051]
[1751260731757,0.2,2499.1,2499.0,5.29262993]
[1751260732054,0.2,2499.1,2499.0,4.01748051]
[1751260734665,0.2,2499.1,2499.0,0.002]
[1751260739874,0.2,2499.1,2499.0,3.20328051]
[1751260740943,0.2,2499.1,2499.0,3.97808051]
[1751260741946,0.2,2499.1,2499.0,9.51070665]
[1751260742147,0.2,2499.1,2499.0,10.80191798]
[1751260742758,6.444,2499.7,2499.3,3.20083235]
[1751260742964,0.2,2499.4,2499.3,3.20083235]
[1751260743973,0.2,2499.4,2499.3,4.02123235]
[1751260746468,6.444,2499.8,2499.6,3.20050799]
[1751260746670,6.444,2499.8,2499.5,3.20057493]
[1751260746972,0.2,2499.6,2499.5,3.20057493]
[1751260748543,0.2,2499.6,2499.4,3.20072644]
[1751260749481,0.2,2499.6,2499.4,3.94285851]
[1751260751458,0.2,2499.6,2499.4,0.74219749]
[1751260751657,0.2,2499.6,2499.3,4.02124932]
[1751260752282,0.2,2499.6,2499.4,3.20075448]
[1751260755182,0.2,2499.6,2499.3,4.02122659]
[1751260756180,0.2,2499.6,2499.4,3.20075201]
[1751260757190,0.2,2499.6,2499.3,4.02122942]
[1751260757391,3.95768071,2499.7,2499.2,3.20096243]
[1751260757592,0.2,2499.5,2499.2,3.20096243]
[1751260758586,0.2,2499.5,2499.3,3.20087617]
[1751260759478,0.2,2499.5,2499.2,3.2010136]
[1751260761096,0.2,2499.5,2499.3,3.20089611]
[1751260761597,0.2,2499.5,2499.2,3.20096659]
[1751260761800,0.2,2499.5,2499.2,4.41469656]
[1751260766790,0.2,2499.5,2499.2,1.21372997]
[1751260766997,0.2,2499.5,2499.3,3.20089042]
[1751260767390,0.2,2499.5,2499.2,3.20095646]
[1751260768002,0.2,2499.5,2499.3,3.20086689]
[1751260769004,7.2484,2499.9,2499.4,3.20076818]
[1751260769306,0.2,2499.6,2499.3,3.99008947]
[1751260769492,0.2,2499.6,2499.4,3.5997142]
[1751260770577,0.2,2499.6,2499.5,3.20064012]
[1751260770904,0.2,2499.9,2499.7,3.20027373]
[1751260771684,0.2,2499.9,2499.5,3.97600084]
[1751260771685,0.2,2499.9,2499.6,3.20045136]
[1751260771884,0.2,2499.9,2499.5,3.97593476]
[1751260772115,0.2,2499.9,2499.5,5.30676559]
[1751260772806,0.2,2499.9,2499.6,3.20047952]
[1751260773714,0.2,2499.9,2499.5,5.30682388]
[1751260773914,0.2,2499.9,2499.5,3.20059305]
[1751260778724,0.2,2499.9,2499.6,3.20051061]
[1751260779095,0.2,2499.9,2499.5,3.20059065]
[1751260779317,0.2,2499.9,2499.6,3.20044024]
[1751260779823,0.2,2499.9,2499.5,3.2005978]
[1751260780124,0.2,2499.9,2499.6,4.0937762]
[1751260780310,0.2,2499.9,2499.6,3.20045381]
[1751260782226,0.2,2499.9,2499.5,3.20057124]
[1751260782426,0.2,2499.9,2499.4,8.16065466]
[1751260782630,0.2,2499.9,2499.4,4.96]
[1751260783429,0.2,2499.9,2499.5,3.20062682]
[1751260785910,0.2,2499.9,2499.6,3.20051013]
[1751260787097,0.2,2499.9,2499.7,3.20034214]
[1751260792805,0.2,2499.9,2499.6,4.02845829]
[1751260793008,0.2,2499.9,2499.5,3.20057163]
[1751260793604,0.8326,2499.8,2499.5,3.20057163]
[1751260793801,0.8326,2499.8,2499.4,8.16068439]
[1751260794006,0.8326,2499.8,2499.4,9.17388878]
[1751260794206,0.2,2499.6,2499.5,3.20051816]
[1751260795042,0.2,2499.8,2499.7,3.200344]
[1751260802813,0.7748,2500.3,2499.8,3.2001868]
[1751260803008,0.2,2500.0,2499.8,3.2001868]
[1751260804548,0.2,2500.0,2499.5,5.7512]
[1751260804746,0.2,2500.0,2499.6,0.69643237]
[1751260804936,0.2,2500.0,2499.7,3.20037196]
[1751260805338,0.7816,2499.9,2499.7,3.20037196]
[1751260806348,0.2,2500.0,2499.7,3.20037196]
[1751260809627,3.19982907,2500.2,2499.4,3.200758]
[1751260809628,3.9933303,2499.9,2499.4,3.200758]
[1751260809827,3.9933303,2499.9,2499.3,3.20083303]
[1751260810030,3.20027065,2499.8,2499.3,3.20083303]
[1751260810229,3.20027065,2499.8,2499.3,3.92248658]
[1751260810426,3.99339186,2499.9,2499.4,3.20071047]
[1751260810750,0.7932,2499.9,2499.5,3.20062569]
[1751260811730,0.7932,2499.9,2499.5,3.20064012]
[1751260812853,3.99334497,2499.9,2499.4,4.01690311]
[1751260813254,3.99334497,2499.9,2499.4,4.77701148]
[1751260814345,0.7932,2499.9,2499.4,4.77701148]
[1751260814541,0.7932,2499.9,2499.6,3.20045237]
[1751260815926,3.19976316,2500.2,2499.7,3.2003166]
[1751260816130,3.9200173,2500.2,2499.7,3.2003166]
[1751260818859,3.99058605,2500.1,2499.6,3.20044348]
[1751260819065,3.99058605,2500.1,2499.4,4.77705901]
[1751260819258,3.20002851,2500.0,2499.4,13.96076805]
[1751260819466,0.7576,2499.9,2499.4,13.96076805]
[1751260819762,0.2,2499.8,2499.4,13.96076805]
[1751260820153,0.2,2499.8,2499.4,3.96079435]
[1751260820352,0.2,2499.8,2499.4,13.96079435]
[1751260823348,0.2,2499.8,2499.5,3.20063084]
[1751260824368,0.2,2499.8,2499.5,5.0089592]
[1751260826738,0.2,2499.8,2499.6,3.20050872]
[1751260827069,0.2,2499.8,2499.6,3.20048205]
[1751260828066,0.2,2499.8,2499.5,5.00891049]
[1751260829681,0.2,2499.8,2499.6,3.20051143]
[1751260829976,0.2,2499.8,2499.5,5.00890514]
[1751260830284,0.2,2499.8,2499.6,3.20050624]
[1751260830769,0.2,2499.8,2499.5,5.00891902]
[1751260831779,0.2,2499.8,2499.6,3.20050437]
[1751260833351,0.2,2499.8,2499.6,3.62106256]
[1751260834448,0.2,2499.8,2499.6,3.20050437]
[1751260834777,0.2,2499.8,2499.6,3.20051208]
[1751260834952,0.2,2499.8,2499.7,3.20038404]
[1751260840094,0.2,2499.8,2499.6,3.20045285]
[1751260844368,0.2,2499.8,2499.7,3.20038404]
[1751260847004,0.2,2499.8,2499.7,3.91137065]
[1751260848970,0.2,2500.0,2499.8,3.20023298]
[1751260854508,0.2,2500.0,2499.7,3.91130266]
[1751260856286,0.2,2500.0,2499.6,3.20049187]
[1751260857512,3.40000162,2500.0,2499.5,3.40056996]
[1751260857796,0.8314,2499.9,2499.5,3.40056996]
[1751260859310,4.03157407,2499.9,2499.5,0.2]
[1751260859512,0.8314,2499.9,2499.5,3.20063995]
[1751260859812,0.2,2499.7,2499.5,3.20063995]
[1751260860905,0.2,2499.7,2499.4,13.96081653]
[1751260861411,0.2,2499.7,2499.4,13.96083003]
[1751260862931,0.2,2499.7,2499.3,0.2]
[1751260862932,0.8144,2499.6,2499.3,0.2]
[1751260863089,0.8144,2499.6,2499.2,11.641]
[1751260863090,0.2,2499.5,2499.2,11.641]
[1751260863284,0.2,2499.5,2499.2,1.641]
[1751260864409,0.2,2499.5,2499.2,4.84200374]
[1751260864608,0.2,2499.5,2499.2,6.83345303]
[1751260867816,0.2,2499.5,2499.3,3.20089309]
[1751260868283,0.2,2499.5,2499.3,3.20089625]
[1751260868489,0.2,2499.5,2499.4,3.20076818]
[1751260868912,0.2,2499.9,2499.7,3.20034696]
[1751260870153,0.2,2499.9,2499.6,3.20046382]
[1751260871451,0.2,2499.9,2499.5,3.20055463]
[1751260871452,0.2,2499.9,2499.7,3.20036992]
[1751260871813,0.2,2499.9,2499.6,3.20044311]
[1751260873447,0.2,2499.9,2499.7,3.20037299]
[1751260874012,0.2,2499.9,2499.8,3.20025602]
[1751260874244,0.2,2499.9,2499.7,3.84041238]
[1751260874708,0.2,2499.9,2499.8,3.20025602]
[1751260875608,0.2,2499.9,2499.7,0.64009276]
[1751260875911,0.2,2499.9,2499.7,3.84041284]
[1751260876751,0.2,2499.9,2499.8,3.20025602]
[1751260877256,0.2,2499.9,2499.7,3.84041425]
[1751260879865,0.2,2499.9,2499.8,3.97990556]
[1751260880048,0.7971,2500.4,2499.9,3.200128]
[1751260880371,0.1992,2500.1,2499.9,3.200128]
[1751260882429,0.1992,2500.1,2499.8,3.97984386]
[1751260882629,0.1992,2500.1,2499.9,3.20010835]
[1751260884364,0.1992,2500.1,2499.8,3.97986177]
[1751260884565,0.1992,2500.1,2499.9,1.44573084]
[1751260884866,0.1992,2500.1,2499.9,4.64585231]
[1751260886528,1.0228,2500.1,2499.7,0.84009276]
[1751260886733,0.8236,2499.8,2499.5,3.20057919]
[1751260887134,0.8236,2499.8,2499.2,11.27899251]
[1751260887344,0.2,2499.7,2499.3,3.40082154]
[1751260887539,0.2,2499.7,2499.4,3.20076151]
[1751260888644,0.2,2499.7,2499.3,10.2]
[1751260888827,0.2,2499.7,2499.4,4.70494937]
[1751260890182,0.2,2499.7,2499.4,1.50419925]
[1751260890465,0.2,2499.7,2499.3,13.4008447]
[1751260891469,0.2,2499.7,2499.4,3.20269557]
[1751260892541,0.2,2499.7,2499.5,3.200613]
[1751260892941,0.2,2499.7,2499.4,0.002]
[1751260893375,4.02390002,2499.8,2499.4,0.002]
[1751260893571,0.2,2499.5,2499.4,0.002]
[1751260897777,0.2,2499.5,2499.4,3.20276818]
[1751260898273,0.2,2499.5,2499.4,0.002]
[1751260899480,0.2,2499.5,2499.4,3.20276818]
[1751260900479,0.9902,2499.5,2499.4,0.002]
[1751260906193,0.2,2499.5,2499.4,0.002]
[1751260917399,0.2,2499.5,2499.4,3.20276818]
[1751260918102,0.2,2499.5,2499.4,0.002]
[1751260922308,0.2,2499.5,2499.4,3.20276818]
[1751260922675,0.7633,2500.0,2499.4,6.94570132]
[1751260922871,0.001,2500.0,2499.7,3.20030796]
[1751260923087,0.2,2499.9,2499.7,4.00490796]
[1751260923794,0.2,2499.9,2499.6,3.20045041]
[1751260923996,0.2,2499.9,2499.5,3.20061847]
[1751260924294,0.9632,2499.9,2499.5,3.20061847]
[1751260924503,0.9632,2499.9,2499.6,3.20047124]
[1751260925115,0.7632,2499.9,2499.5,3.20063102]
[1751260925421,0.2,2499.6,2499.4,3.2027041]
[1751260925722,0.2,2499.6,2499.4,1.33886308]
[1751260926801,0.2,2499.6,2499.4,4.53959481]
[1751260927007,0.2,2499.6,2499.5,3.20064012]
[1751260931848,0.2,2499.6,2499.4,4.53962424]
[1751260933340,0.2,2499.6,2499.5,3.20064012]
[1751260933542,0.2,2499.6,2499.5,4.05220706]
[1751260934638,0.2,2499.6,2499.5,0.85156694]
[1751260934847,0.2,2499.6,2499.5,3.20064012]
[1751260939438,0.2,2499.6,2499.5,3.20264012]
[1751260947655,0.2,2499.6,2499.5,0.002]
[1751260948329,0.2,2499.6,2499.5,3.20264012]
[1751260956634,0.2,2499.6,2499.5,0.002]
[1751260958067,0.2,2499.6,2499.5,3.20264012]
[1751260959959,0.001,2500.0,2499.9,3.200128]
[1751260961153,0.201,2500.0,2499.9,3.200128]
[1751260962059,0.001,2500.0,2499.9,3.200128]
[1751260962264,0.001,2500.0,2499.8,3.20019223]
[1751260962630,0.001,2500.0,2499.6,13.20044017]
[1751260962838,0.2,2499.8,2499.5,10.002]
[1751260963060,0.2,2499.8,2499.6,4.71923531]
[1751260966587,0.2,2499.8,2499.7,3.20038404]
[1751260969951,0.2,2499.8,2499.6,4.71918425]
[1751260970447,0.2,2499.8,2499.7,3.20038404]
[1751260973868,0.001,2500.0,2499.7,3.20038404]
[1751260973869,0.001,2500.0,2499.9,3.200128]
[1751260974047,0.001,2500.0,2499.9,5.21184662]
[1751260975693,0.001,2500.0,2499.9,4.39324662]
[1751260975865,0.001,2500.0,2499.9,3.200128]
[1751260976383,0.001,2500.0,2499.8,3.20020292]
[1751260976582,0.001,2500.0,2499.7,10.2]
[1751260976786,0.001,2500.0,2499.7,13.40026951]
[1751260976952,0.001,2500.0,2499.7,13.40032757]
[1751260977149,0.001,2500.0,2499.7,13.87998314]
[1751260978183,0.001,2500.0,2499.7,10.2]
[1751260978355,0.2,2499.8,2499.7,10.0]
[1751260980194,0.2,2499.8,2499.7,13.20038404]
[1751260980479,0.201,2500.0,2499.8,3.2001745]
[1751260981274,0.201,2500.0,2499.8,4.93622913]
[1751260981474,0.201,2500.0,2499.8,1.73605463]
[1751260981682,0.201,2500.0,2499.8,4.93628105]
[1751260984391,0.201,2500.0,2499.9,3.200128]
[1751260986698,0.201,2500.0,2499.8,4.93825235]
[1751260988279,0.201,2500.0,2499.9,1.81386188]
[1751260988671,0.201,2500.0,2499.9,5.01398988]
[1751260992903,0.001,2500.0,2499.9,5.01398988]
[1751260993115,0.001,2500.0,2499.9,5.79068988]
[1751261004280,0.001,2500.0,2499.9,15.79068988]
[1751261006387,0.001,2500.0,2499.9,22.22368988]
[1751261007014,0.001,2500.0,2499.9,18.24686188]
[1751261007320,0.001,2500.0,2499.9,21.44698988]
[1751261009304,0.001,2500.0,2499.9,18.24886188]
[1751261011329,0.001,2500.0,2499.9,21.44898988]
[1751261013321,0.001,2500.0,2499.9,19.635128]
[1751261014727,0.001,2500.0,2499.9,0.002]
[1751261016925,0.201,2500.0,2499.9,0.002]
[1751261018902,1.0258,2500.0,2499.9,0.002]
[1751261020340,4.2258,2500.0,2499.9,0.002]
[1751261020542,4.96835685,2500.0,2499.9,0.002]
[1751261021730,4.86835685,2500.0,2499.9,0.002]
[1751261022433,4.1258,2500.0,2499.9,0.002]
[1751261045257,14.6758,2500.0,2499.9,0.002]
[1751261046549,21.1088,2500.0,2499.9,0.002]
[1751261048081,22.06401354,2500.0,2499.9,0.002]
[1751261053254,22.36551639,2500.0,2499.9,0.002]
[1751261053453,25.47508116,2500.0,2499.9,0.002]
[1751261060592,13.750128,2499.9,2499.8,0.002]
[1751261060799,26.91648003,2499.9,2499.8,0.002]
[1751261064891,29.14148003,2499.9,2499.8,0.002]
[1751261066878,14.54601208,2499.6,2499.5,0.002]
[1751261067094,26.51225057,2499.6,2499.5,0.002]
[1751261067701,27.46497792,2499.6,2499.5,0.002]
[1751261069982,23.57373943,2499.6,2499.5,0.002]
[1751261070180,23.57573943,2499.6,2499.5,0.002]
[1751261070412,26.6853042,2499.6,2499.5,0.002]
[1751261070706,25.73257685,2499.6,2499.5,0.002]
[1751261071307,26.68562207,2499.6,2499.5,0.002]
[1751261072318,25.89012207,2499.6,2499.5,0.002]
[1751261077210,26.65452207,2499.6,2499.5,0.002]
[1751261085114,19.45212207,2499.6,2499.5,0.002]
[1751261085434,4.1535573,2499.6,2499.5,0.7603]
[1751261085617,10.18651208,2499.6,2499.5,0.7603]
[1751261085992,3.75051208,2499.6,2499.5,0.7603]
[1751261086192,10.18651208,2499.6,2499.5,0.7603]
[1751261087723,3.20049355,2499.7,2499.5,0.7603]
[1751261087913,9.63651208,2499.6,2499.5,0.7603]
[1751261088627,10.18651208,2499.6,2499.5,0.7603]
[1751261093337,11.5252023,2499.6,2499.5,0.002]